fUST/lending_fUST_20240808
["ID","MTS","AMOUNT","RATE_DAILY","PERIOD"]
[334441265,1723101172928,273.37336231,9.9e-05,2]
[334441266,1723101174943,470.88148729,0.00012,2]
[334441267,1723101188914,209.37774825,9.9e-05,2]
[334441268,1723101197387,357.06647484,0.00012,2]
[334441270,1723101200168,1991.94991085,0.00012,2]
[334441271,1723101200599,9110.76868748,0.00012,2]
[334441272,1723101206627,250.38146921,0.00012,2]
[334441273,1723101207617,156.89400092,0.00012,2]
[334441274,1723101208476,218.21171043,0.00012,2]
[334441275,1723101210576,154.7862243,0.00012,2]
[334441276,1723101211365,185.62699944,0.00012,2]
[334441278,1723101216039,414.88650261,0.00012,2]
[334441279,1723101220963,696.10809335,0.00012,2]
[334441280,1723101221218,241.97483746,0.00012,2]
[334441281,1723101222475,810.1149959,0.00012,2]
[334441282,1723101223514,341.91139724,0.00012,2]
[334441283,1723101226721,7912.46799449,0.00014545,2]
[334441284,1723101227009,26120.50095144,0.00014545,2]
[334441285,1723101233140,616.97897138,0.00012,2]
[334441286,1723101235225,155.02102962,0.00014545,2]
[334441287,1723101239439,154.81113139,0.00014545,2]
[334441288,1723101240833,155.00711282,0.00014545,2]
[334441289,1723101245519,282.88904576,0.00012,2]
[334441292,1723101259207,240.17454301,0.00014545,2]
[334441293,1723101261075,155.57132876,0.00014545,2]
[334441294,1723101262263,1752.0359975,0.00014545,2]
[334441295,1723101264600,928.7536126,0.00014545,2]
[334441297,1723101368301,154.94652842,0.00014545,2]
[334441298,1723101395263,162.360983,0.00014247,2]
[334441299,1723101398013,194.60736977,0.00014999,2]
[334441390,1723102232060,-4839.07759787,0.00015938,2]
[334441391,1723102232071,-30810.60362541,0.00015953,2]
[334441392,1723102232080,-300.0,0.00016037,2]
[334441393,1723102232090,-155.63875987,0.0001611,2]
[334441394,1723102232099,-213.54652923,0.00016159,2]
[334441395,1723102232109,-2187.76117785,0.00016246,2]
[334441396,1723102232120,-199.26899147,0.00016532,2]
[334441397,1723102232130,-166.666666,0.00016781,2]
[334441398,1723102232142,-166.666666,0.0001689,2]
[334441399,1723102232151,-166.666666,0.00017,2]
[334441400,1723102232160,-308.80054286,0.00017019,2]
[334441401,1723102232169,-166.666666,0.00017109,2]
[334441402,1723102232178,-166.666666,0.00017218,2]
[334441403,1723102232188,-166.666666,0.00017328,2]
[334441404,1723102232198,-166.666666,0.00017437,2]
[334441405,1723102232210,-166.666666,0.00017546,2]
[334441406,1723102232220,-420.0,0.00017641,2]
[334441407,1723102232231,-166.666666,0.00017656,2]
[334441408,1723102232240,-300.0,0.00017881,2]
[334441409,1723102232250,-492.52191219,0.00017882,2]
[334441410,1723102232260,-318.29934463,0.00018125,2]
[334441411,1723102232270,-154.89138088,0.0001818,2]
[334441412,1723102232282,-1384.91262239,0.00019083,2]
[334441413,1723102232291,-7002.81077238,0.00019147,2]
[334441414,1723102232301,-1648.64246511,0.00019155,2]
[334441415,1723102232313,-3088.98876635,0.00019155,2]
[334441416,1723102232323,-20762.30804091,0.00019167,2]
[334441417,1723102232333,-154.68290005,0.00019167,2]
[334441418,1723102232343,-2168.68501142,0.00019167,2]
[334441419,1723102232353,-1763.75242219,0.00019167,2]
[334441420,1723102232363,-1091.99358002,0.00019177,2]
[334441421,1723102232372,-1611.38995866,0.00019177,2]
[334441422,1723102232383,-862.42234122,0.00019177,2]
[334441423,1723102232396,-2277.17132648,0.00019177,3]
[334441424,1723102232406,-1500.0,0.00019177,2]
[334441425,1723102232415,-845.87870421,0.00019177,2]
[334441426,1723102232425,-277.30782356,0.00019177,2]
[334441427,1723102232435,-162.47169,0.00019183,2]
[334441428,1723102232445,-1383.1311371,0.00019256,2]
[334441429,1723102232457,-816.61314223,0.00019256,2]
[334441430,1723102232467,-570.09724017,0.00019256,2]
[334441431,1723102232477,-519.86309713,0.00019256,2]
[334441432,1723102232487,-154.79103211,0.00019256,2]
[334441433,1723102232498,-2125.48864548,0.00019256,2]
[334441434,1723102232508,-1165.80238899,0.00019256,2]
[334441435,1723102232518,-302.0,0.00019405,2]
[334441436,1723102232528,-1109.04434069,0.00019451,2]
[334441437,1723102232538,-12066.69383906,0.00019451,2]
[334441438,1723102232548,-12066.69383906,0.00019451,2]
[334441439,1723102232558,-269.73277317,0.00019451,2]
[334441440,1723102232568,-333.8324795,0.00019451,2]
[334441441,1723102232577,-2187.76117779,0.00019455,2]
[334441442,1723102232587,-664.5582695,0.00019477,2]
[334441443,1723102232597,-183.12142007,0.00019477,2]
[334441444,1723102232607,-156.8026651,0.00019477,2]
[334441445,1723102232616,-402.85575215,0.00019477,2]
[334441446,1723102232626,-790.94712643,0.00019477,2]
[334441447,1723102232638,-493.99436561,0.00019477,2]
[334441448,1723102232647,-156.89555019,0.00019477,2]
[334441449,1723102232657,-459.69835721,0.00019547,4]
[334441450,1723102232667,-155.02813562,0.00019547,2]
[334441451,1723102232676,-244.01806079,0.00019999,2]
[334441452,1723102232687,-309.70571345,0.0002,2]
[334441453,1723102232696,-1443.89362386,0.0002,2]
[334441454,1723102232706,-175.37858355,0.0002,2]
[334441455,1723102232717,-428.1569534,0.0002,2]
[334441456,1723102232727,-296.9978574,0.00021,2]
[334441457,1723102232738,-215.36696416,0.000211,2]
[334441458,1723102232748,-500.0,0.000211,2]
[334441459,1723102232758,-201.55226334,0.000211,2]
[334441460,1723102232768,-367.97959889,0.000211,2]
[334441461,1723102232777,-1384.91262239,0.00021101,2]
[334441462,1723102232787,-523.62553866,0.0002142,2]
[334441463,1723102232796,-309.08818984,0.00021805,2]
[334441464,1723102232806,-22749.2689128,0.00022498,3]
[334441465,1723102232816,-2187.76117779,0.00022665,2]
[334441466,1723102232829,-1384.91262239,0.0002312,2]
[334441467,1723102232839,-1384.91262239,0.00025138,2]
[334441468,1723102232848,-2187.76117779,0.00025874,2]
[334441469,1723102232857,-200.0,0.00026027,2]
[334441470,1723102232868,-402.58073778,0.00026583,2]
[334441471,1723102232877,-113520.76604031,0.00026959,11]
[334441472,1723102232887,-45498.5378255,0.0002696,3]
[334441473,1723102232900,-7346.15799371,0.0002696,3]
[334441500,1723102240300,-409.62580055,0.0001788,2]
[334441501,1723102240313,-153.09388874,0.0001788,2]
[334441502,1723102240322,-207.68899902,0.0001788,2]
[334441503,1723102240332,-500.0,0.0001788,2]
[334441504,1723102240342,-500.0,0.0001788,2]
[334441505,1723102240351,-500.0,0.0001788,2]
[334441506,1723102240361,-555.07989347,0.0001788,2]
[334441507,1723102240370,-500.0,0.0001788,2]
[334441508,1723102240380,-8090.19928765,0.00019139,2]
[334441509,1723102240392,-12066.69383906,0.00019256,2]
[334441510,1723102240401,-664.5582695,0.00019451,2]
[334441512,1723102240411,-156.8026651,0.00019451,2]
[334441513,1723102240420,-500.0,0.000211,2]
[334441514,1723102240431,-500.0,0.000211,2]
[334441515,1723102240440,-500.0,0.000211,2]
[334441516,1723102240451,-500.0,0.000211,2]
[334441517,1723102240461,-500.0,0.000211,2]
[334441518,1723102240472,-500.0,0.000211,2]
[334441519,1723102240482,-15403.11091909,0.0002696,3]
[334441520,1723102240493,-515.67,0.00026986,2]
[334441521,1723102240503,-153.0,0.00026991,2]
[334441522,1723102240514,-153.0,0.00026991,2]
[334441523,1723102240523,-153.0,0.00026991,2]
[334441524,1723102240534,-153.0,0.00026991,2]
[334441525,1723102240544,-153.0,0.00026991,2]
[334441526,1723102240553,-153.0,0.00026991,2]
[334441527,1723102240563,-153.0,0.00026991,2]
[334441528,1723102240572,-153.0,0.00026991,2]
[334441529,1723102240581,-153.0,0.00026991,2]
[334441530,1723102240591,-153.0,0.00026991,2]
[334441531,1723102240600,-153.0,0.00026991,2]
[334441532,1723102240609,-153.0,0.00026991,2]
[334441533,1723102240619,-1000.0,0.00027,27]
[334441534,1723102240628,-12082.466169,0.00027,2]
[334441535,1723102240638,-7731.0,0.00027,2]
[334441536,1723102240649,-150.112233,0.00027,10]
[334441537,1723102240658,-383.0,0.00027,2]
[334441538,1723102240667,-3089.49561857,0.00027,2]
[334441539,1723102240677,-150.112234,0.000271,6]
[334441540,1723102240687,-153.0,0.000271,2]
[334441541,1723102240696,-153.0,0.000271,2]
[334441542,1723102240705,-153.0,0.000271,2]
[334441543,1723102240714,-153.0,0.000271,2]
[334441544,1723102240724,-153.0,0.000271,2]
[334441545,1723102240734,-153.0,0.000271,2]
[334441546,1723102240743,-153.0,0.000271,2]
[334441547,1723102240753,-153.0,0.000271,2]
[334441548,1723102240762,-153.0,0.000271,2]
[334441549,1723102240771,-153.0,0.000271,2]
[334441550,1723102240781,-153.0,0.000271,2]
[334441551,1723102240791,-153.0,0.000271,2]
[334441552,1723102240800,-153.0,0.000271,2]
[334441553,1723102240809,-153.0,0.000271,2]
[334441554,1723102240820,-153.0,0.000271,2]
[334441555,1723102240831,-153.0,0.000271,2]
[334441564,1723102241057,-153.0,0.000271,2]
[334441565,1723102241069,-153.0,0.000271,2]
[334441566,1723102241078,-153.0,0.000271,2]
[334441567,1723102241087,-153.0,0.000271,2]
[334441568,1723102241098,-153.0,0.000271,2]
[334441569,1723102241108,-153.0,0.000271,2]
[334441570,1723102241117,-153.0,0.000271,2]
[334441571,1723102241127,-153.0,0.000271,2]
[334441572,1723102241136,-153.0,0.000271,2]
[334441573,1723102241146,-153.0,0.000271,2]
[334441574,1723102241155,-153.0,0.000271,2]
[334441575,1723102241164,-153.0,0.000271,2]
[334441576,1723102241174,-153.0,0.000271,2]
[334441577,1723102241183,-153.0,0.000271,2]
[334441578,1723102241193,-153.0,0.000271,2]
[334441579,1723102241202,-153.0,0.000271,2]
[334441580,1723102241213,-153.0,0.000271,2]
[334441581,1723102241222,-153.0,0.000271,2]
[334441582,1723102241232,-153.0,0.000271,2]
[334441583,1723102241241,-153.0,0.000271,2]
[334441584,1723102241251,-153.0,0.000271,2]
[334441585,1723102241260,-153.0,0.000271,2]
[334441586,1723102241269,-153.0,0.000271,2]
[334441587,1723102241279,-153.0,0.000271,2]
[334441588,1723102241290,-153.0,0.000271,2]
[334441589,1723102241300,-153.0,0.000271,2]
[334441590,1723102241313,-153.0,0.000271,2]
[334441591,1723102241322,-153.0,0.000271,2]
[334441592,1723102241331,-153.0,0.000271,2]
[334441593,1723102241341,-153.0,0.000271,2]
[334441594,1723102241352,-153.0,0.000271,2]
[334441595,1723102241361,-153.0,0.000271,2]
[334441596,1723102241370,-153.0,0.000271,2]
[334441597,1723102241380,-153.0,0.000271,2]
[334441598,1723102241390,-153.0,0.000271,2]
[334441599,1723102241406,-153.0,0.000271,2]
[334441600,1723102241415,-153.0,0.000271,2]
[334441601,1723102241424,-153.0,0.000271,2]
[334441602,1723102241433,-153.0,0.000271,2]
[334441603,1723102241443,-153.0,0.000271,2]
[334441604,1723102241452,-153.0,0.000271,2]
[334441605,1723102241461,-45498.5378255,0.00027146,3]
[334441606,1723102241470,-1384.91262239,0.00027156,2]
[334441607,1723102241479,-87425.82966154,0.00027156,3]
[334441608,1723102241488,-2000.0,0.00027167,2]
[334441609,1723102241497,-150.112233,0.000272,8]
[334441610,1723102241506,-160.0,0.00027224,3]
[334441611,1723102241516,-45498.5378255,0.00027246,3]
[334441612,1723102241526,-567.38635391,0.00027256,14]
[334441613,1723102241535,-154.83299387,0.00027256,2]
[334441614,1723102241545,-22749.2689128,0.00027257,3]
[334441615,1723102241554,-2000.0,0.00027297,2]
[334441616,1723102241563,-2159.15047557,0.00027297,2]
[334441617,1723102241572,-22749.2689128,0.00027377,3]
[334441618,1723102241581,-8326.34478382,0.00027394,2]
[334441619,1723102241590,-2605.08504403,0.00027396,2]
[334441620,1723102241600,-397.54077727,0.00027396,2]
[334441621,1723102241610,-500.0,0.00027397,2]
[334441622,1723102241619,-500.0,0.00027397,7]
[334441623,1723102241628,-635.48224298,0.00027397,7]
[334441624,1723102241638,-218.77260261,0.00027397,7]
[334441625,1723102241657,-500.0,0.00027397,7]
[334441626,1723102241666,-500.0,0.00027397,7]
[334441627,1723102241676,-500.0,0.00027397,7]
[334441628,1723102241685,-597.68155875,0.00027397,7]
[334441629,1723102241694,-500.0,0.00027397,7]
[334441630,1723102241704,-500.0,0.00027397,7]
[334441631,1723102241713,-500.0,0.00027397,7]
[334441632,1723102241722,-500.0,0.00027397,7]
[334441633,1723102241731,-500.0,0.00027397,7]
[334441634,1723102241740,-500.0,0.00027397,7]
[334441635,1723102241749,-500.0,0.00027397,7]
[334441636,1723102241759,-500.0,0.00027397,7]
[334441637,1723102241767,-500.0,0.00027397,7]
[334441638,1723102241777,-500.0,0.00027397,7]
[334441639,1723102241787,-500.0,0.00027397,7]
[334441640,1723102241797,-500.0,0.00027397,7]
[334441641,1723102241808,-500.0,0.00027397,7]
[334441642,1723102241821,-519.99,0.00027397,7]
[334441643,1723102241832,-527.11749214,0.00027397,7]
[334441644,1723102241842,-500.0,0.00027397,7]
[334441645,1723102241852,-500.0,0.00027397,7]
[334441646,1723102241862,-152.39234841,0.00027397,7]
[334441647,1723102241872,-500.0,0.00027397,7]
[334441648,1723102241882,-502.16653825,0.00027397,7]
[334441649,1723102241893,-500.0,0.00027397,7]
[334441650,1723102241905,-500.0,0.00027397,7]
[334441651,1723102241916,-500.0,0.00027397,7]
[334441652,1723102241925,-576.19,0.00027397,7]
[334441653,1723102241934,-500.0,0.00027397,7]
[334441654,1723102241944,-502.23178626,0.00027397,7]
[334441655,1723102241953,-500.0,0.00027397,7]
[334441656,1723102241962,-500.0,0.00027397,7]
[334441657,1723102241972,-500.0,0.00027397,7]
[334441658,1723102241981,-500.0,0.00027397,7]
[334441659,1723102241990,-500.0,0.00027397,7]
[334441660,1723102241999,-701.33,0.00027397,7]
[334441661,1723102242009,-407.58086304,0.00027397,7]
[334441662,1723102242018,-500.0,0.00027397,7]
[334441663,1723102242027,-500.0,0.00027397,7]
[334441664,1723102242036,-500.0,0.00027397,7]
[334441665,1723102242045,-500.0,0.00027397,7]
[334441666,1723102242055,-500.0,0.00027397,7]
[334441667,1723102242064,-218.32607606,0.00027397,7]
[334441668,1723102242073,-151.494469,0.00027397,7]
[334441669,1723102242082,-500.0,0.00027397,7]
[334441670,1723102242091,-500.0,0.00027397,7]
[334441671,1723102242101,-500.0,0.00027397,7]
[334441672,1723102242110,-200.0,0.00027397,7]
[334441673,1723102242119,-500.0,0.00027397,7]
[334441674,1723102242129,-500.0,0.00027397,7]
[334441675,1723102242139,-500.0,0.00027397,7]
[334441676,1723102242150,-500.0,0.00027397,7]
[334441677,1723102242159,-500.0,0.00027397,7]
[334441678,1723102242169,-500.0,0.00027397,7]
[334441679,1723102242178,-505.41787136,0.00027397,7]
[334441680,1723102242188,-500.0,0.00027397,7]
[334441681,1723102242197,-444.15482638,0.00027397,7]
[334441682,1723102242206,-673.59,0.00027397,7]
[334441683,1723102242215,-572.52824077,0.00027397,7]
[334441684,1723102242225,-498.10409042,0.00027397,7]
[334441685,1723102242234,-500.0,0.00027397,7]
[334441686,1723102242243,-500.0,0.00027397,7]
[334441687,1723102242253,-500.0,0.00027397,7]
[334441688,1723102242262,-500.0,0.00027397,7]
[334441689,1723102242272,-500.0,0.00027397,7]
[334441690,1723102242281,-500.0,0.00027397,7]
[334441691,1723102242290,-500.0,0.00027397,7]
[334441692,1723102242300,-500.0,0.00027397,7]
[334441693,1723102242310,-506.68391852,0.00027397,7]
[334441694,1723102242319,-500.0,0.00027397,7]
[334441695,1723102242329,-500.0,0.00027397,7]
[334441696,1723102242338,-506.37426237,0.00027397,7]
[334441697,1723102242348,-500.0,0.00027397,7]
[334441698,1723102242357,-500.0,0.00027397,7]
[334441699,1723102242366,-352.01747043,0.00027397,7]
[334441700,1723102242375,-891.72,0.00027397,7]
[334441701,1723102242384,-500.0,0.00027397,7]
[334441702,1723102242394,-500.0,0.00027397,7]
[334441703,1723102242404,-502.22125135,0.00027397,7]
[334441704,1723102242414,-500.0,0.00027397,7]
[334441705,1723102242425,-500.0,0.00027397,7]
[334441706,1723102242434,-500.0,0.00027397,7]
[334441707,1723102242444,-500.0,0.00027397,7]
[334441708,1723102242453,-593.03,0.00027397,7]
[334441709,1723102242463,-500.0,0.00027397,7]
[334441710,1723102242472,-500.0,0.00027397,7]
[334441711,1723102242482,-206.78023,0.00027397,7]
[334441712,1723102242491,-864.16,0.00027397,7]
[334441713,1723102242501,-500.0,0.00027397,7]
[334441714,1723102242510,-500.0,0.00027397,7]
[334441715,1723102242521,-500.0,0.00027397,7]
[334441716,1723102242530,-500.0,0.00027397,7]
[334441717,1723102242540,-500.0,0.00027397,7]
[334441718,1723102242550,-500.0,0.00027397,7]
[334441719,1723102242560,-1629.8,0.00027397,7]
[334441720,1723102242570,-580.8,0.00027397,7]
[334441721,1723102242580,-500.0,0.00027397,7]
[334441722,1723102242589,-500.0,0.00027397,7]
[334441723,1723102242600,-506.84953107,0.00027397,7]
[334441724,1723102242610,-500.0,0.00027397,7]
[334441725,1723102242621,-942.39,0.00027397,7]
[334441726,1723102242631,-500.0,0.00027397,7]
[334441727,1723102242641,-500.0,0.00027397,7]
[334441728,1723102242654,-500.0,0.00027397,7]
[334441729,1723102242663,-500.0,0.00027397,7]
[334441730,1723102242672,-500.0,0.00027397,7]
[334441731,1723102242682,-500.0,0.00027397,7]
[334441732,1723102242692,-500.0,0.00027397,7]
[334441733,1723102242702,-515.55,0.00027397,7]
[334441734,1723102242711,-500.0,0.00027397,7]
[334441735,1723102242721,-500.0,0.00027397,7]
[334441736,1723102242731,-501.28223892,0.00027397,2]
[334441737,1723102242741,-502.457248,0.00027397,7]
[334441738,1723102242751,-518.74,0.00027397,7]
[334441739,1723102242760,-500.0,0.00027397,7]
[334441740,1723102242771,-500.0,0.00027397,7]
[334441741,1723102242781,-500.0,0.00027397,7]
[334441742,1723102242792,-500.0,0.00027397,7]
[334441743,1723102242801,-500.0,0.00027397,7]
[334441744,1723102242811,-500.0,0.00027397,7]
[334441745,1723102242825,-500.0,0.00027397,7]
[334441746,1723102242836,-500.0,0.00027397,7]
[334441747,1723102242847,-500.0,0.00027397,7]
[334441748,1723102242857,-500.0,0.00027397,7]
[334441749,1723102242867,-500.0,0.00027397,7]
[334441750,1723102242876,-500.0,0.00027397,7]
[334441751,1723102242886,-500.0,0.00027397,7]
[334441752,1723102242898,-500.0,0.00027397,7]
[334441753,1723102242910,-500.0,0.00027397,7]
[334441754,1723102242922,-500.0,0.00027397,7]
[334441755,1723102242931,-500.0,0.00027397,7]
[334441756,1723102242941,-500.0,0.00027397,7]
[334441757,1723102242951,-500.0,0.00027397,7]
[334441758,1723102242961,-500.0,0.00027397,7]
[334441759,1723102242971,-581.76,0.00027397,7]
[334441760,1723102242981,-500.0,0.00027397,7]
[334441761,1723102242991,-500.0,0.00027397,7]
[334441762,1723102243000,-500.0,0.00027397,7]
[334441763,1723102243010,-833.91,0.00027397,7]
[334441764,1723102243020,-1319.73,0.00027397,7]
[334441765,1723102243030,-500.0,0.00027397,7]
[334441766,1723102243040,-500.0,0.00027397,7]
[334441767,1723102243050,-500.0,0.00027397,7]
[334441768,1723102243061,-500.0,0.00027397,7]
[334441769,1723102243070,-500.0,0.00027397,7]
[334441770,1723102243080,-500.0,0.00027397,7]
[334441771,1723102243090,-646.65,0.00027397,7]
[334441772,1723102243100,-500.0,0.00027397,7]
[334441773,1723102243110,-502.73880892,0.00027397,7]
[334441774,1723102243119,-500.0,0.00027397,7]
[334441775,1723102243130,-287.11032579,0.00027397,7]
[334441776,1723102243140,-500.0,0.00027397,7]
[334441777,1723102243151,-500.0,0.00027397,7]
[334441778,1723102243161,-1019.11,0.00027397,7]
[334441779,1723102243170,-500.0,0.00027397,7]
[334441780,1723102243180,-500.0,0.00027397,7]
[334441781,1723102243189,-500.0,0.00027397,7]
[334441782,1723102243199,-500.0,0.00027397,7]
[334441783,1723102243208,-500.0,0.00027397,7]
[334441784,1723102243218,-500.0,0.00027397,2]
[334441785,1723102243228,-420.38900599,0.00027397,7]
[334441786,1723102243238,-500.0,0.00027397,7]
[334441787,1723102243248,-500.0,0.00027397,7]
[334441788,1723102243258,-1148.42,0.00027397,7]
[334441789,1723102243267,-500.0,0.00027397,7]
[334441790,1723102243277,-502.83566278,0.00027397,7]
[334441791,1723102243287,-500.0,0.00027397,7]
[334441792,1723102243297,-500.0,0.00027397,7]
[334441793,1723102243306,-1100.77,0.00027397,7]
[334441794,1723102243318,-500.0,0.00027397,7]
[334441795,1723102243328,-500.0,0.00027397,7]
[334441797,1723102243337,-500.0,0.00027397,7]
[334441798,1723102243347,-500.0,0.00027397,7]
[334441799,1723102243357,-500.0,0.00027397,7]
[334441801,1723102243367,-500.0,0.00027397,7]
[334441803,1723102243376,-616.01023069,0.00027397,7]
[334441805,1723102243386,-500.0,0.00027397,7]
[334441806,1723102243398,-500.0,0.00027397,7]
[334441808,1723102243407,-500.0,0.00027397,7]
[334441809,1723102243417,-500.0,0.00027397,7]
[334441810,1723102243428,-500.0,0.00027397,7]
[334441811,1723102243438,-1021.31,0.00027397,7]
[334441812,1723102243450,-500.0,0.00027397,7]
[334441813,1723102243460,-151.0,0.00027397,7]
[334441814,1723102243471,-151.0,0.00027397,7]
[334441815,1723102243481,-500.0,0.00027397,7]
[334441816,1723102243490,-500.0,0.00027397,7]
[334441817,1723102243500,-608.57,0.00027397,7]
[334441818,1723102243509,-500.0,0.00027397,7]
[334441819,1723102243519,-500.0,0.00027397,7]
[334441820,1723102243528,-500.0,0.00027397,7]
[334441821,1723102243542,-500.0,0.00027397,7]
[334441822,1723102243552,-468.46555142,0.00027397,7]
[334441823,1723102243562,-500.0,0.00027397,7]
[334441824,1723102243572,-500.0,0.00027397,7]
[334441825,1723102243582,-500.0,0.00027397,7]
[334441826,1723102243591,-500.0,0.00027397,7]
[334441827,1723102243600,-500.0,0.00027397,7]
[334441828,1723102243611,-522.21,0.00027397,7]
[334441829,1723102243621,-500.0,0.00027397,7]
[334441830,1723102243630,-500.0,0.00027397,7]
[334441831,1723102243640,-151.0,0.00027397,7]
[334441832,1723102243651,-439.461967,0.00027397,7]
[334441833,1723102243660,-210.275677,0.00027397,7]
[334441834,1723102243670,-500.0,0.00027397,7]
[334441835,1723102243680,-500.0,0.00027397,7]
[334441836,1723102243690,-500.0,0.00027397,7]
[334441837,1723102243699,-1723.44,0.00027397,7]
[334441838,1723102243708,-151.0,0.00027397,7]
[334441839,1723102243718,-151.0,0.00027397,7]
[334441840,1723102243727,-812.09,0.00027397,7]
[334441841,1723102243737,-500.0,0.00027397,7]
[334441842,1723102243746,-500.0,0.00027397,7]
[334441843,1723102243756,-500.0,0.00027397,7]
[334441844,1723102243766,-500.0,0.00027397,7]
[334441845,1723102243776,-500.0,0.00027397,7]
[334441846,1723102243785,-500.0,0.00027397,7]
[334441847,1723102243795,-500.0,0.00027397,7]
[334441848,1723102243805,-500.0,0.00027397,7]
[334441849,1723102243815,-796.19,0.00027397,7]
[334441850,1723102243827,-500.0,0.00027397,7]
[334441851,1723102243837,-500.0,0.00027397,7]
[334441852,1723102243846,-500.0,0.00027397,7]
[334441853,1723102243855,-500.0,0.00027397,7]
[334441854,1723102243866,-1117.6,0.00027397,7]
[334441855,1723102243875,-368.56354469,0.00027397,14]
[334441856,1723102243885,-500.0,0.00027397,7]
[334441857,1723102243897,-500.0,0.00027397,7]
[334441858,1723102243908,-500.0,0.00027397,7]
[334441859,1723102243918,-500.0,0.00027397,7]
[334441860,1723102243927,-1312.24,0.00027397,7]
[334441861,1723102243936,-500.0,0.00027397,7]
[334441862,1723102243945,-500.0,0.00027397,7]
[334441863,1723102243954,-500.0,0.00027397,7]
[334441864,1723102243963,-1693.65,0.00027397,7]
[334441865,1723102243973,-500.0,0.00027397,7]
[334441866,1723102243982,-1479.66,0.00027397,7]
[334441867,1723102243991,-500.0,0.00027397,7]
[334441868,1723102244001,-500.0,0.00027397,7]
[334441869,1723102244011,-542.24,0.00027397,7]
[334441870,1723102244023,-500.0,0.00027397,2]
[334441871,1723102244034,-501.54936867,0.00027397,7]
[334441872,1723102244044,-500.0,0.00027397,7]
[334441873,1723102244053,-500.0,0.00027397,7]
[334441874,1723102244062,-500.0,0.00027397,7]
[334441875,1723102244072,-500.0,0.00027397,7]
[334441876,1723102244081,-500.0,0.00027397,7]
[334441877,1723102244093,-776.16994128,0.00027397,5]
[334441878,1723102244102,-151.0,0.00027397,7]
[334441879,1723102244111,-500.0,0.00027397,7]
[334441880,1723102244121,-151.0,0.00027397,7]
[334441881,1723102244130,-731.41,0.00027397,7]
[334441882,1723102244140,-500.0,0.00027397,7]
[334441883,1723102244149,-151.0,0.00027397,2]
[334441884,1723102244160,-500.0,0.00027397,7]
[334441885,1723102244170,-620.76,0.00027397,7]
[334441886,1723102244179,-500.0,0.00027397,7]
[334441887,1723102244188,-502.07808025,0.00027397,7]
[334441888,1723102244198,-1246.54,0.00027397,7]
[334441889,1723102244208,-628.88,0.00027397,7]
[334441890,1723102244218,-500.0,0.00027397,7]
[334441891,1723102244227,-500.0,0.00027397,7]
[334441892,1723102244236,-500.0,0.00027397,7]
[334441893,1723102244245,-500.0,0.00027397,7]
[334441894,1723102244254,-151.0,0.00027397,7]
[334441895,1723102244264,-151.0,0.00027397,7]
[334441896,1723102244275,-739.35,0.00027397,7]
[334441897,1723102244284,-524.3966782,0.00027397,7]
[334441898,1723102244294,-801.26,0.00027397,7]
[334441899,1723102244303,-151.0,0.00027397,7]